Cogmind - Beta 9.3 @@@ ROGUE MODE // 2019.12.19 @ 19:49:14 // Winter2019/RPGLIKE Player: Exeight Result: Self-destructed Performance ------------- Evolutions (2) 1000 Regions Visited (3) 600 Robots Destroyed (42) 210 Value Destroyed (1106) 1106 Prototype IDs (2) 40 Alien Tech Used (0) 0 Bonus (0) 0 TOTAL SCORE: 2956 Bonus ------- None Cogmind --------- Core Integrity 258/1100 Matter 140/300 Energy 97/100 System Corruption 0% Temperature Cool (121) Movement Flying (32) Location -8/Materials Parts ------- > --- POWER (1) -------- (None) > --- PROPULSION (3) --- Flight Unit Flight Unit Improved Flight Unit > --- UTILITY (3) ------ Improved Sensor Array Advanced Signal Interpreter > --- WEAPON (1) ------- Grenade Launcher > --- INVENTORY (1) ---- Assault Cannon Peak State ------------ > --- POWER ------------ Light Ion Engine > --- PROPULSION ------- Flight Unit Flight Unit Improved Flight Unit > --- UTILITY ---------- Improved Sensor Array Advanced Signal Interpreter Light Armor Plating > --- WEAPON ----------- Improved Assault Rifle > --- INVENTORY -------- (None) [Rating: 15] Favorites ----------- Power Light Ion Engine Engine Light Ion Engine Propulsion Flight Unit Leg Aluminum Leg Hover Unit Hover Unit Flight Unit Flight Unit Utility Advanced Signal Interpreter Device Improved Sensor Array Processor Advanced Signal Interpreter Protection Light Armor Plating Weapon Improved Assault Rifle Energy Gun Small Laser Energy Cannon Beam Cannon Ballistic Gun Improved Assault Rifle Ballistic Cannon Assault Cannon Launcher Grenade Launcher Build | -11 -10 -9 -8 ------- Run | Scr Mat Mat Mat Slots Evolved 4 | . 3 1 . Power . | . . . . Propulsion 2 | . 2 . . Utility 2 | . 1 1 . Weapon . | . . . . Parts Attached 22 | 3 7 10 2 Power 1 | 1 . . . Engine 1 | 1 . . . Core . | . . . . Reactor . | . . . . Propulsion 8 | 1 4 3 . Treads . | . . . . Leg 1 | 1 . . . Wheel . | . . . . Hover 1 | . 1 . . Flight 6 | . 3 3 . Utility 5 | . 2 3 . Device 2 | . 1 1 . Storage . | . . . . Processor 2 | . 1 1 . Hackware . | . . . . Protection 1 | . . 1 . Artifact . | . . . . Weapon 8 | 1 1 4 2 Energy Gun 1 | 1 . . . Energy Cannon 1 | . 1 . . Ballistic Gun 4 | . . 4 . Ballistic Cannon 1 | . . . 1 Launcher 1 | . . . 1 Special Weapon . | . . . . Impact Weapon . | . . . . Slashing Weapon . | . . . . Piercing Weapon . | . . . . Special Melee Weapon . | . . . . Unidentified Prototypes 2 | . . 2 . Parts Lost 2 | . . . 2 Power 1 | . . . 1 Propulsion . | . . . . Utility 1 | . . . 1 Weapon . | . . . . Highest Loss Streak 2 | . . . 2 Average Slot Usage (%) 96 | . 91 100 99 Engine 14 | . 16 12 11 Hover 1 | . 3 . . Flight 38 | . 39 39 37 Device 9 | . 5 12 12 Processor 10 | . 8 12 12 Protection 5 | . . 6 12 Energy Gun 5 | . 15 . . Ballistic Gun 7 | . . 11 10 Naked Turns . | . . . . Heaviest Build 12 | 4 7 10 12 Greatest Support 14 | 10 12 14 14 Greatest Overweight (x) . | . . . . Average Overweight (x) . | . . . . Largest Inventory Capacity 1 | . . . 1 Average Capacity . | . . . . Most Carried 1 | . . . 1 Average Carried . | . . . . Final Capacity 1 | . . . 1 Final Carried 1 | . . . 1 Class Distribution -------------------- 67% | Mutant 17% | Sprinter 14% | Scavenger-Mutant Dominant Class ---------------- Mutant | -10/Materials Mutant | -9/Materials Mutant | -8/Materials Resources | -11 -10 -9 -8 ----------- Run | Scr Mat Mat Mat Matter Collected 848 | 230 70 482 66 Remotely . | . . . . Salvage Created 1487 | . 375 791 321 Parts 92 | . 20 57 15 Haulers Intercepted 5 | . 2 3 . Recyclers Shooed . | . . . . Parts Field Recycled . | . . . . Retrieved Matter . | . . . . Parts Self-Destructed . | . . . . Prevented . | . . . . Kills | -11 -10 -9 -8 ------- Run | Scr Mat Mat Mat Combat Hostiles Destroyed 29 | . 7 16 6 Guns 24 | . 7 15 2 Cannons 2 | . . 1 1 AOE 3 | . . . 3 Classes Destroyed 10 | . 4 4 2 Worker 1 | . . 1 . Builder 2 | . . . 2 Hauler 5 | . 2 3 . Operator 1 | . . 1 . Watcher 4 | . 2 2 . Swarmer 7 | . 3 4 . Grunt 14 | . 4 6 4 Brawler 1 | . . 1 . Sentry 6 | . . 5 1 Hunter 1 | . . . 1 Best Kill Streak 6 | . 4 2 6 Combat Bots Only 4 | . 2 2 4 Max Kills in Single Turn 2 | . 1 1 2 Gunslinging . | . . . . Exploded 1 | . . . 1 Melee . | . . . . Uniques/NPCs Destroyed . | . . . . Combat | -11 -10 -9 -8 -------- Run | Scr Mat Mat Mat Damage Taken 1909 | . 256 887 766 Core 1583 | . 212 742 629 Absorbed by Shields . | . . . . Redirected to Core 1108 | . 143 484 481 Core Remaining (%) 85 | 100 91 64 . Volleys Fired 287 | . 114 138 35 Largest 1 | . 1 1 1 Hottest 60 | . 40 60 44 Shots Fired 287 | . 114 138 35 Gun 255 | . 114 124 17 Cannon 20 | . . 14 6 Launcher 12 | . . . 12 Special . | . . . . Kinetic 147 | . . 124 23 Thermal 128 | . 114 14 . Explosive 12 | . . . 12 Electromagnetic . | . . . . Robot Hit Streak 17 | . 11 17 8 Robot Miss Streak 4 | . 3 4 3 Penetration Max . | . . . . Secondary Targets . | . . . . Shots Hit Robots 175 | . 47 105 23 Core Hits 80 | . 19 34 27 Critical Hits 1 | . . 1 . Critical Kills . | . . . . Critical Parts Destroyed 1 | . . 1 . Melee Attacks . | . . . . Impact . | . . . . Slashing . | . . . . Piercing . | . . . . Sneak Attacks . | . . . . Combat Hostiles . | . . . . Follow-up Attacks . | . . . . Damage Inflicted 3137 | . 518 1674 945 Guns 2168 | . 518 1447 203 Cannons 318 | . . 227 91 Explosions 651 | . . . 651 Melee . | . . . . Ramming . | . . . . Kinetic 1741 | . . 1447 294 Thermal 745 | . 518 227 . Explosive 651 | . . . 651 Electromagnetic . | . . . . Impact . | . . . . Slashing . | . . . . Piercing . | . . . . Highest Corruption . | . . . . Average Corruption . | . . . . Corruption Purged . | . . . . Overload Shots . | . . . . Overflow Damage 18 | . . 14 4 Projectiles 14 | . . 14 . Explosions 4 | . . . 4 Melee . | . . . . Knockbacks 4 | . . . 4 Impact . | . . . . Kinetic 3 | . . . 3 Secondary 1 | . . . 1 Self-Inflicted Damage 37 | . . . 37 Shots 2 | . . . 2 Rammed . | . . . . Targets Rammed . | . . . . Kicked . | . . . . Crushed . | . . . . Highest Temperature 367 | . 282 367 164 Average Temperature 82 | . 80 94 68 Received Heat Transfer 732 | . 120 288 324 Effects 1 | . . 1 . Damage (minor) 1 | . . 1 . Siege Activations . | . . . . Robots Corrupted . | . . . . Combat Hostiles . | . . . . Parts Fried . | . . . . Impact Corruptions . | . . . . Robots Melted . | . . . . Combat Hostiles . | . . . . Parts Melted 4 | . 4 . . Heat Transferred 1656 | . 1175 481 . Parts Sabotaged . | . . . . Parts Stolen . | . . . . Parts Stripped . | . . . . Power Chain Reactions . | . . . . Missiles Intercepted . | . . . . Alert | -11 -10 -9 -8 ------- Run | Scr Mat Mat Mat Peak Influence 391 | . 135 391 196 Average Influence 127 | . 59 208 118 Maximum Alert Level 1 | . . 1 . Low Security (%) 81 | 100 100 50 100 Level 1 18 | . . 49 . Level 2 . | . . . . Level 3 . | . . . . Level 4 . | . . . . Level 5 . | . . . . High Security . | . . . . Max Security . | . . . . Squads Dispatched 4 | . . 3 1 Investigation 1 | . . 1 . Extermination . | . . . . Reinforcement 3 | . . 2 1 Assault . | . . . . Garrison . | . . . . Intercept . | . . . . Construction Impeded 1 | . . . 1 Haulers Reinforced . | . . . . Stealth | -11 -10 -9 -8 --------- Run | Scr Mat Mat Mat Distress Signals 7 | . 4 2 1 Communications Jammed . | . . . . Distress Signals . | . . . . Times Spotted 70 | . 18 41 11 Peak Tracking Total 6 | . 3 6 4 Tactical Retreats 9 | . 3 5 1 Traps | -11 -10 -9 -8 ------- Run | Scr Mat Mat Mat Traps Triggered . | . . . . Indirectly . | . . . . Trap Hack Attempts . | . . . . Triggered . | . . . . Disarmed . | . . . . Reprogrammed . | . . . . Reused . | . . . . Traps Extracted . | . . . . Installed . | . . . . Triggered . | . . . . Machines | -11 -10 -9 -8 ---------- Run | Scr Mat Mat Mat Machines Disabled 2 | . . . 2 Max in Single Turn 1 | . . . 1 Machines Sabotaged . | . . . . Garrisons Compromised . | . . . . Overloaded Fab Kills . | . . . . Fab Network Shutdowns . | . . . . Hacking | -11 -10 -9 -8 --------- Run | Scr Mat Mat Mat Machines Accessed 13 | . 8 4 1 Terminals 13 | . 8 4 1 Fabricators . | . . . . Repair Stations . | . . . . Recycling Units . | . . . . Scanalyzers . | . . . . Garrison Access . | . . . . Total Hacks 33 | . 19 12 2 Successful 23 | . 13 8 2 Failed 10 | . 6 4 . Catastrophic 2 | . 1 1 . Database Lockouts . | . . . . Manual 32 | . 18 12 2 Terminals 33 | . 19 12 2 Fabricators . | . . . . Repair Stations . | . . . . Recycling Units . | . . . . Scanalyzers . | . . . . Garrison Access . | . . . . Terminal Hacks 12 | . 7 4 1 Terminal Index 2 | . 2 . . Zone Layout 10 | . 5 4 1 Fabricator Hacks . | . . . . Repair Station Hacks . | . . . . Recycling Unit Hacks . | . . . . Scanalyzer . | . . . . Garrison Access Hacks . | . . . . Unauthorized Hacks 25 | . 15 8 2 Terminals 11 | . 6 4 1 Track 10 | . 6 3 1 Assimilate 1 | . . 1 . Fabricators . | . . . . Repair Stations . | . . . . Recycling Units . | . . . . Scanalyzers . | . . . . Garrison Access . | . . . . Data Cores Recovered . | . . . . Used . | . . . . Hacking Detections 10 | . 6 4 . Full Trace Events 1 | . . 1 . Feedback Events . | . . . . Feedback Blocked . | . . . . Robot Schematics Acquired . | . . . . Robots Built . | . . . . Matter . | . . . . Time . | . . . . Total Robot Build Rating . | . . . . Part Schematics Acquired . | . . . . Parts Built . | . . . . Matter . | . . . . Time . | . . . . Total Part Build Rating . | . . . . Parts Repaired . | . . . . Time . | . . . . Parts Recycled . | . . . . Recycled Matter . | . . . . Retrieved Matter . | . . . . Retrieved Components . | . . . . Parts Scanalyzed . | . . . . Part Schematics Acquired . | . . . . Parts Damaged . | . . . . Bothacking | -11 -10 -9 -8 ------------ Run | Scr Mat Mat Mat Used RIF Installer . | . . . . Robots Hacked . | . . . . Non-combat . | . . . . Combat . | . . . . Robot Hacks Applied . | . . . . Relay Couplers Released . | . . . . Robots Rewired . | . . . . Allies Hacked . | . . . . Hacks Repelled . | . . . . Allies | -11 -10 -9 -8 -------- Run | Scr Mat Mat Mat Total Allies . | . . . . Largest Group . | . . . . Highest-Rated Group . | . . . . Highest-Rated Ally . | . . . . Total Orders . | . . . . Ally Attacks . | . . . . Total Damage . | . . . . Kills . | . . . . Allies Corrupted . | . . . . Allies Melted . | . . . . Intel | -11 -10 -9 -8 ------- Run | Scr Mat Mat Mat Robot Analysis Total . | . . . . Derelict Logs Recovered . | . . . . Drone Launches . | . . . . Drone Recoveries . | . . . . Exploration | -11 -10 -9 -8 ------------- Run | Scr Mat Mat Mat Turns Passed 2667 | 62 988 981 636 Spaces Moved 2429 | 43 870 1191 325 Core 6 | 6 . . . Treads . | . . . . Legs 50 | 37 13 . . Wheels . | . . . . Hover 173 | . 173 . . Flight 2200 | . 684 1191 325 Fastest Speed 32 | 50 34 32 32 Average Speed 37 | 110 40 33 33 Slowest Speed 120 | 120 120 37 34 Overloaded Moves . | . . . . Propulsion Burnouts . | . . . . Robots Hopped 8 | . 2 5 1 Cave-ins Triggered . | . . . . Exploration Rate (%) 49 | 3 98 81 17 Regions Visited 3 Branch Regions . Pre-discovered Areas . | . . . . Known Exits Taken 2 | . 1 1 . Unknown Exits Taken 1 | 1 . . . Scrap Searched . | . . . . Spaces Dug . | . . . . Terrain Destroyed 34 | . . . 34 Melee . | . . . . Projectile 1 | . . . 1 AOE 33 | . . . 33 Actions | -11 -10 -9 -8 --------- Run | Scr Mat Mat Mat Total 3892 | 56 1385 1635 816 Wait 1114 | 11 385 265 453 Move 2410 | 42 865 1180 323 Hop 8 | . 2 5 1 Pick Up 1 | . . . 1 Fast Attach 21 | 3 7 10 1 Attach . | . . . . Detach . | . . . . Swap 1 | . . . 1 Drop 13 | . 3 9 1 Fire 287 | . 114 138 35 Melee . | . . . . Ram . | . . . . Kick . | . . . . Crush . | . . . . Escape Stasis . | . . . . Rewire . | . . . . Trap . | . . . . Miscellaneous 37 | . 9 28 . Route ------- -11/Scrapyard -10/Materials (discovered 4 exits: *Mat x3 / [*Min]) -9/Materials (discovered 4 exits: *Mat x2 / *Min x2) -8/Materials History --------- Turn | Location | Event 4 | -11/Scrapyard | Discovered new exit (range 14) 63 | -11/Scrapyard | Entered Materials 159 | -10/Materials | Discovered new exit (range 9) 186 | -10/Materials | Discovered new exit (range 14) 215 | -10/Materials | Upgraded with Propulsion slot (x2) 300 | -10/Materials | Build established: Mutant 493 | -10/Materials | Discovered new exit (range 15) 695 | -10/Materials | Upgraded with Utility slot (x1) 719 | -10/Materials | Discovered new exit (range 18) 984 | -10/Materials | Build established: Scavenger-Mutant 1045 | -10/Materials | Identified exit to Materials 1051 | -10/Materials | Entered another Materials area 1053 | -9/Materials | Reached level 2 1271 | -9/Materials | Discovered new exit (range 11) 1274 | -9/Materials | Identified exit to Mines 1299 | -9/Materials | Reached level 3 1352 | -9/Materials | Discovered new exit (range 5) 1353 | -9/Materials | Identified exit to Materials 1503 | -9/Materials | Build established: Sprinter 1520 | -9/Materials | Upgraded with Utility slot (x1) 1813 | -9/Materials | Discovered exit to Mines (range 11) 1854 | -9/Materials | Reached level 4 1864 | -9/Materials | Build established: Mutant 1986 | -9/Materials | Discovered exit to Materials (range 14) 2032 | -9/Materials | Entered another Materials area 2034 | -8/Materials | Reached level 5 2561 | -8/Materials | Core integrity fell below 50% 2647 | -8/Materials | Core integrity fell below 20% 2668 | -8/Materials | Self-destructed Last Messages --------------- G-50 Soldier unfolds itself. G-47 Trooper unfolds itself. G-47 Trooper destroyed. Slug penetrates Wall. U-05 Engineer lays Concrete. H-55 Commando destroyed. U-05 Engineer lays Concrete. G-47 Trooper destroyed. U-05 Engineer destroyed. Lgt. Ion Engine destroyed. Destroyed Lgt. Ion Engine. U-05 Engineer lays Concrete. Destroyed Welding Torch. U-05 Engineer destroyed. G-47 Trooper destroyed. Atomic Centrifuge disabled. The unstable cave ceiling collapses. Lgt. Armor Plating destroyed. Upgraded: Core Integrity (+250) The unstable cave ceiling collapses. Map ----- +----------------------------------------------------+ | ?????????????????????????????????????????? | | ?????????????????????????????????????????? | | ?????????????????????????????????????????? | | ?????????????????????????????????????????? | | ?????????????????????????????????????????? | | ?????????????????????????????????????????? | | ?????????????????????????????????????????? | | ?????????????????????????????????????????? | | ?????????????????????????????????????????? | | ?????????????????????????????????????????? | | ?????????????????????????????????????????? | | ????????????????????? ?????????????????? | | ????????????????????# ?????????????????? | | ????????????????????# ?????????????????? | | ????????????????????# #????????????????? | | ????????????????????# #????????????????? | | ????????????????????# #????????????????? | | ????????????????????# #????????????????? | | ????????????????????# #????????????????? | | ????????????????????# #????????????????? | | ????????????????????# #????????????????? | | ????????????????????# ###########??????? | | ????????????????#???#a # #??????? | | ???????????# "T" # # [ #??????? | | ???????????#! % #??????? | | ???????????# @ #??????? | | ???????????# = """ #??????? | | ???????????# g% """ #??????? | | ######?????# % " """ #??????? | | #?????# * #??????? | | #????## =!# #########?????? | | || #????# = #?????? | | || #????##### #?????? | | || #????????## #?????? | | #?????????## ###########?????? | | #+#+################# # #??????? | | # #??????? | | k + #??????? | | # #??????? | | ##################### ###########??????? | | ???????????????????## ##???????????????? | | ????#######????????# ########????????? | | ##### ##########= #????????? | | a u g #????????? | | T g ! #????????? | | % #####+######????? | | #/### r ################?# #????? | | !%%### ########?????????# #????? | | """=#?# # #?????????# """ #????? | | """ #?# # """ #?????????# """"" #????? | +----------------------------------------------------+ Best States ------------- Heat Dissipation 25 Energy Generation 10 Energy Capacity 125 Matter Stores 300 Matter Capacity 300 Sight Range 16 Robot Scan Range 13 Terrain Scan Density 10 Armor Coverage 150 Evasion (%) 63 Item Schematics ----------------- None Robot Schematics ------------------ None Fabricated ------------ Nothing Alien Tech Used ----------------- None Achievements -------------- None Challenges ------------ None RPGLIKE | -11 -10 -9 -8 --------- Run | Scr Mat Mat Mat Levels Raised 4 | . . 3 1 XP Earned 10335 | 3000 1170 3785 2380 XP Spent 3550 | . 1800 800 950 Upgrades 15 | . 3 1 11 Propulsion Slot 2 | . 2 . . Utility Slot 2 | . 1 1 . Core Integrity 10 | . . . 10 Inventory Capacity 1 | . . . 1 Protomatter Created 293 | . 74 219 . Integrity Restored 787 | . 167 620 . Core 741 | . 161 580 . Parts 46 | . 6 40 . Protomatter Decayed 28 | . 18 10 . Game ------ Seed PropulsionGravmagNanosword Manual? 0 Play Time 00:51:01 Cumulative 31.6 hours Start 2019.12.19 @ 18:19:30 End 2019.12.19 @ 19:49:14 Sessions 1 Manual Loads 0 Difficulty Rogue Special Mode Winter2019/RPGLIKE Game No. 38 Rogue 38 Adventurer 0 Explorer 0 Win Type - Total 0 Types 0/0/0/0/0/0/0 Lore% 15 Gallery% 20 Achievement% 24 Wizard Run 0 Options --------- ASCII 0 Keyboard 0 Movement Mouse Keybinds 0 Fullscreen 0 Font 32/SmallcapsGlow Map View 76x50 Tactical HUD 0 Map Filters NONE Filters NONE Steam 1 RUN: 171ff415-0a9f-4cb0-8a8a-ca4d51c52ce2